bitfinex/quotes_BTCUSD_20251208
["timestamp","ask_amount","ask_price","bid_price","bid_amount"]
[1765160281643,0.00593126,91090.0,91089.0,0.30997547]
[1765160281935,0.00593126,91090.0,91089.0,0.37125684]
[1765160282682,0.00593126,91090.0,91089.0,0.39544884]
[1765160282683,0.00193126,91090.0,91089.0,0.39544884]
[1765160283018,0.00193126,91090.0,91089.0,0.37325684]
[1765160283217,0.00193126,91090.0,91089.0,0.39544884]
[1765160283426,0.00193126,91090.0,91089.0,0.37125684]
[1765160283774,0.00193126,91090.0,91089.0,0.39844884]
[1765160284602,0.00193126,91090.0,91089.0,0.45745699]
[1765160285467,0.00193126,91090.0,91089.0,0.39844884]
[1765160285669,0.00193126,91090.0,91089.0,1.43629383]
[1765160285872,0.0004,91100.0,91099.0,0.24173337]
[1765160286071,0.00051723,91100.0,91099.0,0.35683151]
[1765160286271,0.00051723,91100.0,91099.0,0.39745151]
[1765160286844,0.00051723,91100.0,91099.0,0.37525951]
[1765160287053,0.00051723,91100.0,91099.0,0.42484823]
[1765160287252,0.00051723,91100.0,91099.0,0.42884823]
[1765160287452,0.00051723,91100.0,91099.0,0.49137122]
[1765160287657,0.00051723,91100.0,91099.0,0.89314574]
[1765160288051,0.00051723,91100.0,91099.0,0.81437122]
[1765160288250,0.00051723,91100.0,91099.0,0.89325674]
[1765160288967,0.00051723,91100.0,91099.0,1.74608322]
[1765160289192,0.0004,91120.0,91109.0,0.21951728]
[1765160289396,0.0004,91120.0,91109.0,0.99169127]
[1765160289600,0.0004,91120.0,91109.0,0.97324027]
[1765160290712,0.0004,91120.0,91109.0,0.97924027]
[1765160290936,0.0004,91120.0,91109.0,0.97624027]
[1765160291251,0.0004,91120.0,91109.0,1.08994533]
[1765160291583,0.0004,91120.0,91109.0,1.08694533]
[1765160291811,0.0004,91120.0,91109.0,1.10430533]
[1765160292007,0.00098865,91110.0,91109.0,1.10730533]
[1765160292410,0.00098865,91110.0,91109.0,1.18603405]
[1765160293234,0.00098865,91110.0,91109.0,1.10730533]
[1765160293793,0.00098865,91110.0,91109.0,1.19042734]
[1765160294176,0.00098865,91110.0,91109.0,1.11169862]
[1765160294335,0.00098865,91110.0,91109.0,1.1903845]
[1765160295743,0.0004,91120.0,91119.0,0.62720818]
[1765160296015,0.0004,91120.0,91119.0,0.80031842]
[1765160296316,0.0004,91120.0,91119.0,0.83851842]
[1765160296499,0.0004,91120.0,91119.0,0.84291125]
[1765160296813,0.0004,91120.0,91119.0,0.84491125]
[1765160297171,0.0004,91120.0,91119.0,0.03149306]
[1765160297525,0.0004,91120.0,91119.0,0.02743]
[1765160297699,0.0004,91120.0,91119.0,0.06563]
[1765160298105,0.0004,91120.0,91119.0,0.32276363]
[1765160298269,0.0004,91120.0,91119.0,0.30731519]
[1765160298475,0.0004,91120.0,91119.0,0.39300519]
[1765160299087,0.0004,91120.0,91119.0,0.39100519]
[1765160299284,0.0004,91120.0,91119.0,0.36881319]
[1765160299469,0.0074,91120.0,91119.0,0.36881319]
[1765160299675,0.0074,91120.0,91119.0,0.39100519]
[1765160300512,0.0074,91120.0,91119.0,0.36881319]
[1765160300715,0.0074,91120.0,91119.0,0.43032928]
[1765160300915,0.0074,91120.0,91119.0,0.39100519]
[1765160301447,0.00769426,91120.0,91119.0,0.39100519]
[1765160302210,0.00769426,91120.0,91119.0,0.45352818]
[1765160304457,0.00769426,91120.0,91119.0,0.77652818]
[1765160304690,0.00734021,91120.0,91119.0,0.77652818]
[1765160305101,0.00734021,91120.0,91119.0,1.45657326]
[1765160305273,0.00734021,91120.0,91119.0,1.11301726]
[1765160305790,0.00034021,91120.0,91119.0,1.11301726]
[1765160306200,0.00434021,91120.0,91119.0,1.11301726]
[1765160306708,0.00434021,91120.0,91119.0,1.11201726]
[1765160307143,0.00434021,91120.0,91119.0,1.11401726]
[1765160307353,0.00434021,91120.0,91119.0,1.05503618]
[1765160307470,0.00434021,91120.0,91119.0,0.3905856]
[1765160307674,0.00434021,91120.0,91119.0,0.38717319]
[1765160308273,0.00434021,91120.0,91119.0,0.36981319]
[1765160308586,0.00434021,91120.0,91119.0,0.38717319]
[1765160310536,0.00434021,91120.0,91119.0,0.11212]
[1765160310743,0.01575308,91120.0,91119.0,0.002]
[1765160311325,0.00595308,91120.0,91119.0,0.002]
[1765160311950,0.00195308,91120.0,91119.0,0.002]
[1765160312146,0.00795308,91120.0,91119.0,0.002]
[1765160312516,0.00795308,91120.0,91119.0,0.00598473]
[1765160314234,0.00795308,91120.0,91119.0,0.06961473]
[1765160314235,0.00634021,91120.0,91119.0,0.06961473]
[1765160314433,0.00634021,91120.0,91119.0,0.09156404]
[1765160314667,0.00634021,91120.0,91119.0,0.06961473]
[1765160315638,0.00634021,91120.0,91119.0,0.09180673]
[1765160315840,0.00634021,91120.0,91119.0,0.06961473]
[1765160316282,0.00634021,91120.0,91119.0,0.17272845]
[1765160316491,0.00634021,91120.0,91119.0,0.44108204]
[1765160316712,0.00634021,91120.0,91119.0,0.41913273]
[1765160317427,0.00634021,91120.0,91119.0,0.42113273]
[1765160317774,0.00634021,91120.0,91119.0,0.29060573]
[1765160318103,0.00034021,91120.0,91119.0,0.27938658]
[1765160318306,0.00134021,91120.0,91119.0,0.27938658]
[1765160318674,0.00134021,91120.0,91119.0,0.30157858]
[1765160319077,0.00134021,91120.0,91119.0,0.62457858]
[1765160319829,0.00134021,91120.0,91119.0,0.68710157]
[1765160320033,0.0004,91130.0,91129.0,0.022192]
[1765160320236,0.00051721,91130.0,91129.0,0.08551691]
[1765160320400,0.00051721,91130.0,91129.0,0.18813434]
[1765160320597,0.00081143,91130.0,91129.0,0.18813434]
[1765160320806,0.00081143,91130.0,91129.0,0.21032634]
[1765160321403,0.00581143,91130.0,91129.0,0.18813434]
[1765160321810,0.00581143,91130.0,91129.0,0.21032634]
[1765160322191,0.00581143,91130.0,91129.0,0.18813434]
[1765160322419,0.00581143,91130.0,91129.0,0.21032634]
[1765160322622,0.00581143,91130.0,91129.0,0.26947844]
[1765160323025,0.00581143,91130.0,91129.0,0.24753153]
[1765160323224,0.00581143,91130.0,91129.0,0.18837943]
[1765160323502,0.00581143,91130.0,91129.0,0.59584933]
[1765160323641,0.00581143,91130.0,91129.0,0.57390242]
[1765160324089,0.00081143,91130.0,91129.0,0.57390242]
[1765160324441,0.00381143,91130.0,91129.0,0.57390242]
[1765160324645,0.00081143,91130.0,91129.0,0.57390242]
[1765160325083,0.00081143,91130.0,91129.0,0.57790242]
[1765160325688,0.00081143,91130.0,91129.0,0.47582743]
[1765160325849,0.00081143,91130.0,91129.0,0.49318743]
[1765160326055,0.00081143,91130.0,91129.0,0.49618743]
[1765160326712,0.00081143,91130.0,91129.0,0.49318743]
[1765160326928,0.00081143,91130.0,91129.0,0.49518743]
[1765160327126,0.00081143,91130.0,91129.0,0.49118743]
[1765160327555,0.00081143,91130.0,91129.0,0.49218743]
[1765160327749,0.00081143,91130.0,91129.0,0.51337943]
[1765160328110,0.00081143,91130.0,91129.0,0.49601943]
[1765160328483,0.00081143,91130.0,91129.0,0.49118743]
[1765160328686,0.00081143,91130.0,91129.0,0.15082743]
[1765160328902,0.00081143,91130.0,91129.0,0.16818743]
[1765160329937,0.0101543,91130.0,91129.0,0.04140177]
[1765160330137,0.22962099,91130.0,91129.0,0.002]
[1765160330615,0.22962099,91130.0,91129.0,0.03155339]
[1765160330820,0.22962099,91130.0,91129.0,0.02955339]
[1765160331324,0.23062099,91130.0,91129.0,0.02955339]
[1765160331530,0.23062099,91130.0,91124.0,0.03940177]
[1765160331531,0.23835099,91130.0,91128.0,0.02955339]
[1765160331772,0.23835099,91130.0,91120.0,0.00160579]
[1765160331773,0.00773,91121.0,91120.0,0.03115918]
[1765160331953,0.00773,91121.0,91120.0,0.00160579]
[1765160332106,0.00773,91121.0,91120.0,0.00790161]
[1765160333496,0.00873,91121.0,91120.0,0.00790161]
[1765160333757,0.00873,91121.0,91120.0,0.03745453]
[1765160333758,0.01646,91121.0,91120.0,0.03745453]
[1765160333909,0.01646,91121.0,91120.0,0.00790161]
[1765160334116,0.00873,91121.0,91120.0,0.00160579]
[1765160334314,0.01646,91121.0,91120.0,0.00160579]
[1765160334514,0.00873,91121.0,91120.0,0.00160579]
[1765160334719,0.01573,91121.0,91120.0,0.00160579]
[1765160337084,0.008,91121.0,91120.0,0.02860579]
[1765160337297,0.008,91121.0,91120.0,0.12384923]
[1765160337848,0.008,91121.0,91120.0,0.05680923]
[1765160338156,0.01573,91121.0,91120.0,0.05680923]
[1765160338329,0.008,91121.0,91120.0,0.00160579]
[1765160338624,0.008,91121.0,91120.0,0.02860579]
[1765160338831,0.008,91121.0,91120.0,0.00160579]
[1765160339030,0.01573,91121.0,91120.0,0.00160579]
[1765160340021,0.23521837,91121.0,91120.0,0.00160579]
[1765160340216,0.23521837,91121.0,91120.0,0.05081758]
[1765160340596,0.58814436,91121.0,91120.0,0.00160579]
[1765160341678,0.58714436,91121.0,91120.0,0.00160579]
[1765160342090,0.58814436,91121.0,91120.0,0.00160579]
[1765160342385,0.58114436,91121.0,91120.0,0.00160579]
[1765160342787,0.58514436,91121.0,91120.0,0.00160579]
[1765160342993,0.59214436,91121.0,91120.0,0.00260579]
[1765160343400,0.62714436,91121.0,91120.0,0.00560579]
[1765160343602,0.68966735,91121.0,91120.0,0.00560579]
[1765160344161,0.68966735,91121.0,91120.0,0.00160579]
[1765160344162,0.64266735,91121.0,91120.0,0.00160579]
[1765160344502,0.64266735,91121.0,91120.0,0.00560579]
[1765160344503,0.69166735,91121.0,91120.0,0.00560579]
[1765160345049,0.67966735,91121.0,91120.0,0.00460579]
[1765160345249,0.69266735,91121.0,91120.0,0.00560579]
[1765160345444,0.65566735,91121.0,91120.0,0.00260579]
[1765160345698,0.65566735,91121.0,91120.0,0.00160579]
[1765160345905,0.67966735,91121.0,91120.0,0.00460579]
[1765160346107,0.63447136,91121.0,91120.0,0.00260579]
[1765160346312,0.65666735,91121.0,91120.0,0.00260579]
[1765160346564,0.67247136,91121.0,91120.0,0.00560579]
[1765160346694,0.69466735,91121.0,91120.0,0.00560579]
[1765160347524,0.69466735,91121.0,91079.0,0.23056741]
[1765160347525,0.21958958,91079.0,91077.0,0.02955292]
[1765160347705,0.21959759,91076.0,91073.0,0.04844292]
[1765160347905,0.23057743,91076.0,91073.0,0.01889]
[1765160348174,0.23057743,91076.0,91062.0,0.01889]
[1765160348175,0.01098056,91070.0,91062.0,0.01889]
[1765160348364,0.01098104,91066.0,91063.0,0.01570168]
[1765160348743,0.23060221,91066.0,91063.0,0.01609268]
[1765160348972,0.01098104,91066.0,91063.0,0.000391]
[1765160350434,0.01098104,91066.0,91063.0,0.005391]
[1765160350630,0.01198104,91066.0,91063.0,0.009391]
[1765160351088,0.01198104,91066.0,91063.0,0.0203724]
[1765160351670,0.23160237,91066.0,91063.0,0.009391]
[1765160351870,0.001,91066.0,91064.0,0.02997502]
[1765160352675,0.0058,91065.0,91064.0,0.02997502]
[1765160352876,0.0058,91065.0,91063.0,0.009391]
[1765160352877,0.21962575,91064.0,91063.0,0.004391]
[1765160353048,0.22542575,91064.0,91063.0,0.004391]
[1765160353454,0.22542575,91064.0,91063.0,0.000391]
[1765160354276,0.003,91064.0,91063.0,0.042681]
[1765160354490,0.004,91064.0,91063.0,0.022391]
[1765160354693,0.004,91064.0,91063.0,0.08115759]
[1765160354880,0.004,91064.0,91063.0,0.12105759]
[1765160355082,0.004,91064.0,91063.0,0.08115759]
[1765160355338,0.003,91064.0,91063.0,0.07715759]
[1765160355692,0.01131294,91128.0,91074.0,0.01098008]
[1765160355693,0.01097947,91079.0,91074.0,0.01098008]
[1765160356033,0.01097947,91079.0,91078.0,0.01891]
[1765160356935,0.0058,91086.0,91083.0,0.01097899]
[1765160357076,0.01097851,91087.0,91085.0,0.02429]
[1765160357280,0.01097839,91088.0,91083.0,0.01097899]
[1765160357281,0.21956789,91088.0,91086.0,0.06419]
[1765160357533,0.21956789,91088.0,91087.0,0.03167117]
[1765160357886,0.0058,91093.0,91087.0,0.06693968]
[1765160358157,0.01677779,91093.0,91090.0,0.01097815]
[1765160358491,0.23054314,91090.0,91087.0,0.03167117]
[1765160358740,0.21957753,91084.0,91078.0,0.03927]
[1765160359045,0.21957753,91084.0,91079.0,0.01097947]
[1765160359247,0.23055313,91086.0,91079.0,0.01097947]
[1765160359248,0.21957512,91085.0,91081.0,0.01097923]
[1765160359405,0.01097887,91084.0,91080.0,0.01097935]
[1765160359606,0.01097899,91083.0,91080.0,0.01097935]
[1765160359822,0.01097899,91083.0,91081.0,0.03689618]
[1765160360229,0.01097923,91081.0,91076.0,0.01097984]
[1765160360594,0.01097923,91081.0,91080.0,0.003]
[1765160361347,0.23057176,91078.0,91075.0,0.06917682]
[1765160361524,0.23057176,91078.0,91076.0,0.10202252]
[1765160361908,0.01197923,91081.0,91076.0,0.10202252]
[1765160362110,0.001,91081.0,91078.0,0.01097959]
[1765160362312,0.001,91081.0,91076.0,0.11300236]
[1765160362313,0.0058,91077.0,91076.0,0.002]
[1765160362499,0.0058,91077.0,91063.0,0.06442051]
[1765160362500,0.0109808,91068.0,91063.0,0.0113724]
[1765160362697,0.21962334,91065.0,91064.0,0.05387663]
[1765160363300,0.23059944,91067.0,91064.0,0.05387663]
[1765160363698,0.21962329,91066.0,91064.0,0.05387663]
[1765160363920,0.23059944,91067.0,91065.0,0.05792872]
[1765160364498,0.23159944,91067.0,91065.0,0.05792872]
[1765160365747,0.23059944,91067.0,91065.0,0.05792872]
[1765160365947,0.005,91067.0,91066.0,0.28381093]
[1765160366727,0.01097911,91082.0,91076.0,0.01097984]
[1765160366928,0.43898897,91119.0,91080.0,0.022192]
[1765160366929,0.0302,91107.0,91080.0,0.022192]
[1765160367157,0.01097851,91087.0,91081.0,0.04846815]
[1765160367363,0.01097851,91087.0,91082.0,0.21958235]
[1765160367698,0.01097851,91087.0,91083.0,0.01097899]
[1765160367905,0.01097851,91087.0,91083.0,0.05087899]
[1765160368195,0.01097863,91086.0,91083.0,0.05087899]
[1765160368397,0.01097863,91086.0,91084.0,0.05361873]
[1765160368604,0.23055139,91086.0,91084.0,0.05361873]
[1765160369356,0.23055139,91086.0,91085.0,0.02429]
[1765160369553,0.01097947,91079.0,91076.0,0.03255292]
[1765160369757,0.01097947,91079.0,91077.0,0.03833145]
[1765160370832,0.23056905,91079.0,91077.0,0.03833145]
[1765160370985,0.23056905,91079.0,91073.0,0.05789312]
[1765160370986,0.21960164,91074.0,91072.0,0.02955292]
[1765160371161,0.01098032,91072.0,91069.0,0.02955292]
[1765160371362,0.01098032,91072.0,91069.0,0.04846292]
[1765160371557,0.01098032,91072.0,91070.0,0.04270895]
[1765160371785,0.23058723,91072.0,91070.0,0.04270895]
[1765160371980,0.01097996,91075.0,91071.0,0.21960887]
[1765160372180,0.01097996,91075.0,91070.0,0.04270895]
[1765160372181,0.01097935,91080.0,91076.0,0.01097984]
[1765160372383,0.21956994,91088.0,91070.0,0.08324243]
[1765160372384,0.01098008,91074.0,91070.0,0.08324243]
[1765160372597,0.01098008,91074.0,91071.0,0.04300758]
[1765160372796,0.003,91072.0,91071.0,0.04300758]
[1765160372963,0.003,91072.0,91071.0,0.08290758]
[1765160373155,0.001,91074.0,91072.0,0.21960646]
[1765160373375,0.01097996,91075.0,91072.0,0.01098032]
[1765160373575,0.01097959,91078.0,91075.0,0.01097996]
[1765160374284,0.23056836,91080.0,91075.0,0.01097996]
[1765160374508,0.01097947,91079.0,91076.0,0.015]
[1765160374710,0.01097996,91075.0,91072.0,0.11481613]
[1765160375650,0.21960164,91074.0,91072.0,0.10183581]
[1765160375872,0.21960164,91074.0,91071.0,0.05398802]
[1765160375873,0.21960164,91074.0,91073.0,0.06643474]
[1765160376025,0.21961128,91070.0,91067.0,0.02955292]
[1765160376227,0.21962575,91064.0,91063.0,0.02994392]
[1765160376434,0.22542575,91064.0,91063.0,0.05994095]
[1765160376599,0.22542575,91064.0,91063.0,0.000391]
[1765160376794,0.25342174,91064.0,91063.0,0.000391]
[1765160377632,0.25442174,91064.0,91063.0,0.003391]
[1765160378612,0.25542174,91064.0,91063.0,0.008391]
[1765160379231,0.25542174,91064.0,91063.0,0.005391]
[1765160379232,0.22062575,91064.0,91063.0,0.005391]
[1765160379751,0.22062575,91064.0,91063.0,0.006391]
[1765160379953,0.22062575,91064.0,91063.0,0.05956817]
[1765160379954,0.001,91064.0,91063.0,0.05956817]
[1765160380133,0.001,91064.0,91063.0,0.09946817]
[1765160384253,0.01098008,91074.0,91071.0,0.01098044]
[1765160384459,0.01098008,91074.0,91071.0,0.03651044]
[1765160384662,0.01098008,91074.0,91072.0,0.02502064]
[1765160385310,0.21960405,91073.0,91072.0,0.02502064]
[1765160385634,0.21960405,91073.0,91072.0,0.02802064]
[1765160385846,0.034,91074.0,91072.0,0.05355064]
[1765160386063,0.043,91074.0,91073.0,0.02553]
[1765160386324,0.043,91074.0,91073.0,0.14940272]
[1765160386489,0.009,91074.0,91073.0,0.12721072]
[1765160386698,0.23054194,91090.0,91073.0,0.12721072]
[1765160386699,0.01097815,91090.0,91085.0,0.01097875]
[1765160386894,0.01097791,91092.0,91089.0,0.04372]
[1765160387121,0.21956065,91091.0,91089.0,0.04372]
[1765160387285,0.21956065,91091.0,91089.0,0.01819]
[1765160387822,0.00161287,91093.0,91089.0,0.02916827]
[1765160388115,0.23214779,91093.0,91089.0,0.02916827]
[1765160388321,0.23214779,91093.0,91090.0,0.05056463]
[1765160388545,0.01,91091.0,91090.0,0.05056463]
[1765160388681,0.23052544,91097.0,91092.0,0.02553]
[1765160388682,0.0109773,91097.0,91092.0,0.02553]
[1765160388881,0.0109773,91097.0,91091.0,0.25701065]
[1765160388882,0.0109773,91097.0,91093.0,0.02553]
[1765160389080,0.01097694,91100.0,91091.0,0.25701065]
[1765160389081,0.01097694,91100.0,91096.0,0.03650743]
[1765160389337,0.00379,91104.0,91101.0,0.01097682]
[1765160389482,0.01097586,91109.0,91106.0,0.01097622]
[1765160389817,0.00379,91110.0,91108.0,0.21951969]
[1765160390018,0.00379,91110.0,91107.0,0.0109761]
[1765160390225,0.01097586,91109.0,91106.0,0.01819]
[1765160390422,0.01097646,91104.0,91101.0,0.01097682]
[1765160390598,0.01097646,91104.0,91102.0,0.03454857]
[1765160390804,0.23050629,91104.0,91102.0,0.03454857]
[1765160391029,0.23050629,91104.0,91097.0,0.05746108]
[1765160391030,0.035,91100.0,91098.0,0.01097718]
[1765160391215,0.035,91100.0,91099.0,0.01097706]
[1765160391415,0.01097646,91104.0,91100.0,0.01097694]
[1765160391755,0.008,91104.0,91101.0,0.01097682]
[1765160391913,0.01097634,91105.0,91101.0,0.01097682]
[1765160392144,0.01097634,91105.0,91102.0,0.03564576]
[1765160392839,0.00379,91103.0,91102.0,0.03564576]
[1765160393019,0.0109767,91102.0,91098.0,0.01097718]
[1765160393223,0.01097682,91101.0,91098.0,0.01097718]
[1765160393758,0.23050578,91104.0,91099.0,0.01097706]
[1765160393959,0.0109767,91102.0,91099.0,0.01097706]
[1765160394466,0.009,91101.0,91099.0,0.01097706]
[1765160394761,0.2305159,91100.0,91097.0,0.05746108]
[1765160394960,0.2305159,91100.0,91092.0,0.01736]
[1765160394961,0.21955583,91093.0,91092.0,0.01736]
[1765160395715,0.01097755,91095.0,91092.0,0.01736]
[1765160395952,0.01097779,91093.0,91088.0,0.01097839]
[1765160396132,0.01097815,91090.0,91088.0,0.00011723]
[1765160396332,0.01097815,91090.0,91089.0,0.05081412]
[1765160396816,0.2305309,91095.0,91089.0,0.05081412]
[1765160396817,0.0109767,91102.0,91098.0,0.01097718]
[1765160397016,0.01642207,91127.0,91099.0,0.01097706]
[1765160397017,0.01097634,91105.0,91099.0,0.01097706]
[1765160397318,0.01097658,91103.0,91099.0,0.01097706]
[1765160397518,0.01097658,91103.0,91100.0,0.0637436]
[1765160398172,0.21953414,91102.0,91100.0,0.05276666]
[1765160398416,0.01097658,91103.0,91097.0,0.0109773]
[1765160398587,0.01097658,91103.0,91100.0,0.01097694]
[1765160398787,0.0109767,91102.0,91099.0,0.01097706]
[1765160398994,0.00288,91100.0,91091.0,0.23053645]
[1765160399198,0.00288,91092.0,91090.0,0.01097815]
[1765160399393,0.2195486,91096.0,91091.0,0.02885523]
[1765160399758,0.01097767,91094.0,91091.0,0.03983326]
[1765160400197,0.21955583,91093.0,91091.0,0.02885523]
[1765160400396,0.21955583,91093.0,91088.0,0.00011723]
[1765160400397,0.23053868,91091.0,91088.0,0.00011723]
[1765160400714,0.00288,91089.0,91088.0,0.00011723]
[1765160401214,0.25273467,91091.0,91088.0,0.00011723]
[1765160401215,0.23053868,91091.0,91088.0,0.00011723]
[1765160401436,0.01097803,91091.0,91088.0,0.00011723]
[1765160401600,0.01097803,91091.0,91089.0,0.04686758]
[1765160402001,0.00288,91090.0,91089.0,0.04686758]
[1765160402325,0.02219599,91089.0,91088.0,0.00011723]
[1765160402527,0.02507599,91089.0,91088.0,0.00011723]
[1765160402725,0.00288,91089.0,91088.0,0.00011723]
[1765160402928,0.02795599,91089.0,91088.0,0.00011723]
[1765160403131,0.03595599,91089.0,91088.0,0.00011723]
[1765160403709,0.03595599,91089.0,91088.0,0.00111723]
[1765160404029,0.02795599,91089.0,91088.0,0.00111723]
[1765160404214,0.05207599,91089.0,91088.0,0.00311723]
[1765160404411,0.00288,91089.0,91088.0,0.00111723]
[1765160404829,0.00288,91089.0,91088.0,0.00011723]
[1765160405041,0.05630207,91089.0,91088.0,0.00311723]
[1765160405219,0.06530207,91089.0,91088.0,0.00411723]
[1765160409548,0.09037806,91089.0,91088.0,0.00411723]
[1765160412198,0.06818207,91089.0,91088.0,0.00411723]
[1765160412402,0.41337806,91089.0,91088.0,0.00411723]
[1765160417024,0.43073806,91089.0,91088.0,0.00411723]
[1765160418408,0.43073806,91089.0,91059.0,0.23061764]
[1765160418409,0.01098225,91056.0,91052.0,0.02955292]
[1765160418610,0.23067036,91039.0,91036.0,0.02955292]
[1765160418817,0.23067036,91039.0,91029.0,0.02955292]
[1765160418818,0.01098514,91032.0,91029.0,0.02955292]
[1765160418985,0.01098538,91030.0,91029.0,0.000391]
[1765160419195,0.23069316,91030.0,91029.0,0.000391]
[1765160419695,0.01098538,91030.0,91029.0,0.025221]
[1765160419917,0.01098538,91030.0,91029.0,0.059831]
[1765160420119,0.01098538,91030.0,91029.0,0.083831]
[1765160420249,0.01498538,91030.0,91029.0,0.083831]
[1765160421185,0.01498538,91030.0,91029.0,0.049221]
[1765160421570,0.01598538,91030.0,91029.0,0.027391]
[1765160422178,0.005,91030.0,91029.0,0.052221]
[1765160422381,0.005,91030.0,91029.0,0.086831]
[1765160425847,0.005,91030.0,91029.0,0.14418821]
[1765160429024,0.005,91030.0,91029.0,0.16071732]
[1765160429845,0.005,91030.0,91029.0,0.14418821]
[1765160433267,0.005,91030.0,91029.0,0.10957821]
[1765160433473,0.01045287,91030.0,91029.0,0.027391]
[1765160434297,0.00753287,91030.0,91029.0,0.024391]
[1765160434437,0.00453287,91030.0,91029.0,0.002391]
[1765160434864,0.23216065,91030.0,91029.0,0.002391]
[1765160435278,0.23024065,91030.0,91029.0,0.002391]
[1765160435748,0.23216065,91030.0,91029.0,0.002391]
[1765160436197,0.23024065,91030.0,91029.0,0.002391]
[1765160436396,0.22832065,91030.0,91029.0,0.002391]
[1765160436602,0.23024065,91030.0,91029.0,0.002391]
[1765160437794,0.23216065,91030.0,91029.0,0.002391]
[1765160437995,0.23024065,91030.0,91029.0,0.002391]
[1765160446943,0.25257664,91030.0,91029.0,0.002391]
[1765160447939,0.25065664,91030.0,91029.0,0.002391]
[1765160448144,0.25079664,91030.0,91029.0,0.002391]
[1765160450824,0.22846065,91030.0,91029.0,0.002391]
[1765160451025,0.22832065,91030.0,91029.0,0.002391]
[1765160451447,0.22846065,91030.0,91029.0,0.002391]
[1765160452732,0.25079664,91030.0,91029.0,0.002391]
[1765160453160,0.25065664,91030.0,91029.0,0.002391]
[1765160454761,0.22832065,91030.0,91029.0,0.002391]
[1765160457685,0.22670778,91030.0,91029.0,0.060611]
[1765160457888,0.22670778,91030.0,91029.0,0.06992556]
[1765160459419,0.22670778,91030.0,91029.0,0.01170556]
[1765160459601,0.22670778,91030.0,91029.0,0.002391]
[1765160461986,0.22670778,91030.0,91029.0,0.026621]
[1765160462324,0.22670778,91030.0,91029.0,0.002391]
[1765160464361,0.22670778,91030.0,91029.0,0.026621]
[1765160465873,0.22670778,91030.0,91029.0,0.002391]
[1765160467027,0.22670778,91030.0,91029.0,0.060611]
[1765160467521,0.007,91030.0,91029.0,0.060611]
[1765160467824,0.007,91030.0,91029.0,0.33687527]
[1765160467971,0.007,91030.0,91029.0,0.37642727]
[1765160468598,0.001,91030.0,91029.0,0.35423527]
[1765160468795,0.001,91030.0,91029.0,0.37642727]
[1765160468999,0.007,91030.0,91029.0,0.37642727]
[1765160469197,0.001,91030.0,91029.0,0.37642727]
[1765160469404,0.007,91030.0,91029.0,0.37642727]
[1765160469778,0.006,91030.0,91029.0,0.37442727]
[1765160470218,0.007,91030.0,91029.0,0.37842727]
[1765160470618,0.006,91030.0,91029.0,0.37442727]
[1765160471131,0.007,91030.0,91029.0,0.35623527]
[1765160471294,0.007,91030.0,91029.0,0.37842727]
[1765160472296,0.007,91030.0,91029.0,0.82305145]
[1765160472502,0.007,91030.0,91029.0,1.38985626]
[1765160475698,0.21963303,91061.0,91055.0,0.01098237]
[1765160475699,0.01098189,91059.0,91055.0,0.01098237]
[1765160475936,0.01098189,91059.0,91056.0,0.08289608]
[1765160476072,0.23062088,91059.0,91058.0,0.02199]
[1765160476418,0.21964264,91057.0,91056.0,0.04722608]
[1765160476606,0.21965952,91050.0,91049.0,0.01736]
[1765160476789,0.21966917,91046.0,91045.0,0.01814]
[1765160476988,0.21968124,91041.0,91040.0,0.17382546]
[1765160477194,0.23066217,91043.0,91040.0,0.02817564]
[1765160477394,0.01259584,91050.0,91042.0,0.03297394]
[1765160477622,0.01259584,91050.0,91049.0,0.04013]
[1765160478188,0.01098249,91054.0,91049.0,0.04013]
[1765160478189,0.01098261,91053.0,91049.0,0.08678309]
[1765160478391,0.21965711,91051.0,91050.0,0.03567]
[1765160478630,0.21965711,91051.0,91050.0,0.0663134]
[1765160478785,0.21965711,91051.0,91050.0,0.0883034]
[1765160479742,0.24065711,91051.0,91050.0,0.0883034]
[1765160480109,0.021,91051.0,91050.0,0.0903034]
[1765160480877,0.021,91051.0,91050.0,0.30996292]
[1765160481196,0.021,91051.0,91050.0,0.0903034]
[1765160481930,0.021,91051.0,91050.0,0.30996292]
[1765160482712,0.021,91051.0,91050.0,0.0326434]
[1765160482912,0.021,91051.0,91050.0,0.002]
[1765160483193,0.021,91051.0,91050.0,0.05966]
[1765160483837,0.021,91051.0,91050.0,0.02399]
[1765160484045,0.021,91051.0,91050.0,0.27931952]
[1765160485556,0.021,91051.0,91050.0,0.30151152]
[1765160485755,0.021,91051.0,91050.0,0.38354012]
[1765160485966,0.021,91051.0,91050.0,0.36134812]
[1765160486334,0.021,91051.0,91050.0,0.35934812]
[1765160486775,0.022,91051.0,91050.0,0.36234812]
[1765160487288,0.001,91051.0,91050.0,0.36234812]
[1765160487691,0.018,91051.0,91050.0,0.36234812]
[1765160488098,0.018,91051.0,91050.0,0.37970812]
[1765160488298,0.018,91051.0,91050.0,0.36234812]
[1765160488508,0.018,91051.0,91050.0,0.37970812]
[1765160488910,0.018,91051.0,91050.0,0.40190012]
[1765160489411,0.018,91051.0,91050.0,0.37970812]
[1765160491117,0.23765711,91051.0,91050.0,0.1070186]
[1765160491268,0.018,91051.0,91050.0,0.003]
[1765160491632,0.23765711,91051.0,91050.0,0.003]
[1765160491971,0.23765711,91051.0,91050.0,0.02499]
[1765160492171,0.018,91051.0,91050.0,0.06066]
[1765160492600,0.018,91051.0,91050.0,0.09663631]
[1765160494902,0.018,91051.0,91050.0,0.12619612]
[1765160495109,0.018,91051.0,91050.0,0.09663631]
[1765160495315,0.018,91051.0,91050.0,0.12619612]
[1765160495900,0.018,91051.0,91050.0,0.34585564]
[1765160496116,0.018,91051.0,91050.0,0.003]
[1765160496117,0.23765711,91051.0,91050.0,0.003]
[1765160496325,0.23926998,91051.0,91050.0,0.003]
[1765160496563,0.26146597,91051.0,91050.0,0.003]
[1765160497037,0.24446597,91051.0,91050.0,0.003]
[1765160497228,0.24446597,91051.0,91040.0,0.000391]
[1765160497229,0.21968124,91041.0,91040.0,0.17421646]
[1765160497411,0.21968124,91041.0,91040.0,0.02258263]
[1765160497565,0.21968124,91041.0,91040.0,0.000391]
[1765160498204,0.21968124,91041.0,91040.0,0.022381]
[1765160498431,0.24268124,91041.0,91040.0,0.022381]
[1765160498634,0.023,91041.0,91040.0,0.022381]
[1765160498791,0.023,91041.0,91040.0,0.08761081]
[1765160499010,0.023,91041.0,91040.0,0.14857745]
[1765160499211,0.023,91041.0,91040.0,0.17054581]
[1765160499461,0.023,91041.0,91040.0,0.14857745]
[1765160500187,0.023,91041.0,91040.0,0.14757745]